bitfinex/quotes_ETHUSD_20250808
["timestamp","ask_amount","ask_price","bid_price","bid_amount"]
[1754616286558,9.94610256,3900.0,3899.6,0.128]
[1754616286759,12.12830256,3900.0,3899.1,0.04]
[1754616287067,12.25630256,3900.0,3899.3,0.128]
[1754616287270,6.15050256,3900.0,3899.3,0.128]
[1754616287473,7.51,3900.0,3899.5,0.128]
[1754616287678,3.128,3900.0,3899.5,0.128]
[1754616287970,3.0,3900.0,3899.9,0.129]
[1754616288178,7.382,3900.0,3899.9,2.1087]
[1754616288391,3.0,3900.0,3899.9,2.1087]
[1754616288547,6.281,3900.8,3899.9,2.1087]
[1754616288751,2.56376465,3900.6,3899.9,2.1087]
[1754616288950,3.0,3900.5,3900.3,0.128]
[1754616289167,9.9458396,3900.4,3900.3,0.128]
[1754616289366,0.4584,3900.4,3899.9,0.001]
[1754616289569,3.0,3900.7,3900.0,1.9797]
[1754616289765,6.281,3900.8,3900.2,0.128]
[1754616289966,6.281,3900.8,3900.6,0.128]
[1754616289967,4.381,3900.7,3900.6,0.128]
[1754616290303,7.381,3900.7,3900.6,0.128]
[1754616290651,9.94464242,3900.7,3900.6,0.128]
[1754616290893,7.381,3900.7,3900.6,0.128]
[1754616291187,3.0,3900.7,3900.6,0.128]
[1754616291387,7.381,3900.7,3900.6,0.128]
[1754616291888,6.153,3900.8,3900.6,2.5451]
[1754616292074,4.381,3900.7,3900.6,0.128]
[1754616292281,3.0,3900.6,3899.9,0.001]
[1754616292450,6.153,3900.8,3899.9,0.001]
[1754616292654,6.153,3900.8,3900.0,2.4171]
[1754616292655,4.38,3900.7,3900.0,2.4171]
[1754616292885,4.379,3900.6,3900.1,0.67921]
[1754616293088,4.379,3900.6,3900.1,0.24181]
[1754616293299,0.04,3901.9,3900.3,0.55]
[1754616293453,4.379,3901.8,3900.5,0.55]
[1754616293657,3.0,3901.7,3900.7,0.55]
[1754616293869,3.0,3901.7,3900.8,2.76881]
[1754616294084,3.0,3901.7,3900.9,2.4171]
[1754616294491,3.0,3901.7,3901.0,0.4374]
[1754616294658,3.0,3901.7,3901.1,1.9797]
[1754616296064,3.0,3901.7,3900.9,1.9797]
[1754616296775,3.0,3901.7,3900.5,1.9797]
[1754616297093,5.4657,3901.7,3900.5,1.9797]
[1754616297298,0.4584,3901.6,3900.2,1.9797]
[1754616297496,4.376,3901.5,3900.2,1.9797]
[1754616298190,3.0,3901.4,3900.2,1.9797]
[1754616298389,4.376,3901.5,3900.2,1.9797]
[1754616298696,3.0,3901.4,3900.2,1.9797]
[1754616298894,0.4584,3901.3,3899.3,1.9797]
[1754616299095,2.56360761,3900.8,3899.5,1.9797]
[1754616299401,3.0,3900.6,3899.5,1.9797]
[1754616299695,2.1822,3901.3,3899.5,1.9797]
[1754616299696,3.0,3900.4,3899.5,1.9797]
[1754616299989,3.0,3900.2,3899.5,1.9797]
[1754616300194,4.374,3900.1,3899.5,1.9797]
[1754616300385,4.374,3900.0,3899.5,1.9797]
[1754616300761,4.374,3900.0,3899.1,0.041]
[1754616300996,3.0,3900.3,3899.1,0.041]
[1754616301302,4.374,3900.0,3899.1,0.041]
[1754616301497,7.374,3900.0,3899.1,0.041]
[1754616301880,7.8324,3900.0,3899.1,0.041]
[1754616302094,12.12030256,3900.0,3899.1,0.041]
[1754616302267,12.12030256,3900.0,3899.6,0.128]
[1754616302467,12.24830256,3900.0,3899.4,0.128]
[1754616302777,13.85107143,3900.0,3899.4,0.128]
[1754616302971,12.12727143,3900.0,3899.4,0.128]
[1754616303271,7.373,3900.0,3899.7,0.128]
[1754616303676,3.0,3900.0,3899.7,0.128]
[1754616303976,7.372,3900.0,3899.7,0.128]
[1754616304369,3.0,3900.0,3899.5,1.9797]
[1754616304595,7.372,3900.0,3899.9,0.129]
[1754616304792,7.372,3900.0,3899.9,0.001]
[1754616304793,8.1084,3900.0,3899.9,0.001]
[1754616305173,3.0,3900.0,3899.9,0.001]
[1754616305376,7.371,3900.0,3899.9,2.4181]
[1754616305581,7.371,3900.0,3899.9,1.9807]
[1754616305778,7.371,3900.0,3899.9,2.4181]
[1754616305960,7.371,3900.0,3899.9,1.9807]
[1754616306166,7.371,3900.0,3899.9,2.4181]
[1754616306495,7.371,3900.0,3899.9,2.67271]
[1754616306496,4.371,3900.0,3899.9,2.67271]
[1754616306844,4.37,3900.0,3899.9,2.67271]
[1754616307101,0.002,3900.1,3900.0,0.55]
[1754616307313,0.002,3900.1,3900.0,2.9671]
[1754616307595,0.002,3900.1,3900.0,5.68484358]
[1754616307799,0.002,3900.1,3900.0,5.65920256]
[1754616309468,0.002,3900.1,3900.0,3.0951]
[1754616310197,0.002,3900.1,3900.0,2.5451]
[1754616310603,0.002,3900.1,3900.0,2.9671]
[1754616310804,4.369,3900.1,3900.0,2.9671]
[1754616311302,4.369,3900.1,3900.0,2.82651]
[1754616311515,4.369,3900.1,3900.0,1.9797]
[1754616311869,4.369,3900.1,3899.9,0.001]
[1754616312706,0.002,3900.1,3900.0,2.4171]
[1754616312903,4.368,3900.1,3900.0,2.4171]
[1754616313105,4.368,3900.1,3899.9,0.001]
[1754616313603,4.368,3900.1,3900.0,1.9797]
[1754616313774,0.002,3900.1,3900.0,1.9797]
[1754616314107,4.367,3900.1,3900.0,1.9797]
[1754616315776,0.002,3900.1,3899.9,0.001]
[1754616316070,4.7994,3900.0,3899.9,0.001]
[1754616316475,1.7258,3900.1,3899.9,0.001]
[1754616316476,0.002,3900.1,3899.9,0.001]
[1754616316676,4.363,3900.0,3899.9,0.001]
[1754616318383,0.002,3900.1,3899.9,1.8985]
[1754616318579,4.362,3900.0,3899.9,0.4358]
[1754616318895,4.362,3900.0,3899.9,0.001]
[1754616319586,4.362,3900.0,3899.9,1.8985]
[1754616320399,4.362,3900.0,3899.9,2.0265]
[1754616321384,4.362,3900.0,3899.9,0.129]
[1754616322813,4.359,3900.0,3899.9,2.0265]
[1754616323181,4.359,3900.0,3899.9,0.129]
[1754616323385,6.9543,3900.0,3899.9,0.129]
[1754616323620,0.002,3900.1,3899.9,0.129]
[1754616324119,4.358,3900.0,3899.9,0.129]
[1754616324289,4.358,3900.0,3899.4,1.51326]
[1754616324478,4.358,3900.0,3899.1,0.041]
[1754616324479,4.358,3900.0,3899.9,0.128]
[1754616324678,7.2278,3900.0,3899.9,0.128]
[1754616324883,0.8714,3900.0,3899.9,0.128]
[1754616325095,4.7924,3900.0,3899.9,0.128]
[1754616325627,4.357,3900.0,3899.9,0.128]
[1754616326635,0.002,3900.1,3899.9,0.128]
[1754616326791,0.002,3900.1,3899.9,2.0255]
[1754616326995,0.002,3900.1,3900.0,2.4603]
[1754616327236,4.358,3900.1,3900.0,2.70633]
[1754616327535,4.358,3900.1,3900.0,0.37403]
[1754616327699,4.358,3900.1,3900.0,0.128]
[1754616327903,4.358,3900.1,3900.0,2.4603]
[1754616328112,4.358,3900.1,3900.0,2.0255]
[1754616328439,4.357,3900.1,3900.0,2.4603]
[1754616328792,0.002,3900.1,3900.0,11.84912178]
[1754616329032,0.002,3900.1,3900.0,14.41322434]
[1754616330727,0.002,3900.1,3900.0,3.0103]
[1754616331400,0.002,3900.1,3900.0,5.57440256]
[1754616331727,0.002,3900.1,3900.0,3.0103]
[1754616332026,0.002,3900.1,3900.0,5.57440256]
[1754616332210,0.002,3900.1,3900.0,3.0103]
[1754616332922,0.002,3900.1,3900.0,0.128]
[1754616333422,0.002,3900.1,3900.0,2.0255]
[1754616333595,0.002,3900.1,3900.0,2.4603]
[1754616333927,0.002,3900.1,3900.0,0.128]
[1754616334894,2.4358,3900.1,3900.0,0.128]
[1754616335099,0.002,3900.1,3900.0,0.128]
[1754616336610,2.4358,3900.1,3900.0,0.128]
[1754616336807,5.93576458,3900.1,3900.0,0.128]
[1754616337310,3.0,3899.5,3899.1,0.041]
[1754616337506,4.347,3899.4,3899.1,0.041]
[1754616337710,9.7808,3899.4,3899.3,0.128]
[1754616338028,9.9114971,3899.4,3899.3,0.128]
[1754616338226,8.59459048,3899.4,3899.3,0.128]
[1754616338395,10.59299048,3899.4,3899.3,0.128]
[1754616338595,9.7808,3899.4,3899.3,0.128]
[1754616338897,7.346,3899.4,3899.3,0.128]
[1754616339110,3.0,3899.4,3899.3,0.128]
[1754616339529,0.002,3900.1,3899.3,2.0255]
[1754616339702,3.0,3899.9,3899.3,2.4603]
[1754616340026,0.002,3900.1,3900.0,0.128]
[1754616340339,3.0,3900.0,3899.3,2.3323]
[1754616340498,0.002,3900.1,3899.3,2.56963]
[1754616340707,4.345,3900.0,3899.3,2.56963]
[1754616340940,0.002,3900.1,3899.5,9.38882178]
[1754616341145,0.002,3900.1,3899.9,0.128]
[1754616342138,4.344,3900.0,3899.9,0.128]
[1754616345419,6.7505,3900.0,3899.9,0.128]
[1754616345620,12.31460256,3900.0,3899.9,0.128]
[1754616345820,2.56435018,3899.7,3899.6,0.128]
[1754616346019,2.56462653,3899.3,3899.1,0.041]
[1754616346207,6.90562864,3899.2,3899.1,0.041]
[1754616346418,13.0026915,3899.2,3899.1,0.041]
[1754616347036,10.43806286,3899.2,3899.1,0.041]
[1754616347256,3.0,3899.2,3899.1,0.041]
[1754616347459,7.341,3899.2,3899.1,0.041]
[1754616348115,3.0,3899.2,3899.1,0.041]
[1754616348628,7.34,3899.2,3899.1,0.041]
[1754616350423,4.339,3899.2,3899.1,0.041]
[1754616350631,3.0,3899.9,3899.1,1.8893]
[1754616350855,7.38666026,3900.0,3899.1,1.8893]
[1754616350856,3.0,3899.7,3899.1,1.8893]
[1754616351019,6.155,3900.0,3899.8,0.128]
[1754616351225,6.155,3900.0,3899.2,11.22899967]
[1754616351226,0.002,3900.1,3899.9,2.408]
[1754616351446,4.338,3900.0,3899.9,2.408]
[1754616351623,0.002,3900.1,3899.9,2.6488]
[1754616351820,0.002,3900.1,3900.0,2.30564102]
[1754616352127,0.002,3900.1,3900.0,2.28]
[1754616352529,0.002,3900.1,3900.0,1.8483]
[1754616352733,0.002,3900.1,3900.0,2.28]
[1754616353324,0.002,3900.1,3900.0,2.54488]
[1754616353860,0.002,3900.1,3900.0,2.57052102]
[1754616354028,0.002,3900.1,3900.0,2.54488]
[1754616355341,0.002,3900.1,3900.0,2.57052102]
[1754616355754,0.002,3900.1,3900.0,2.54488]
[1754616357046,0.002,3900.1,3900.0,1.8483]
[1754616357255,0.002,3900.1,3899.9,0.128]
[1754616357629,0.002,3900.1,3900.0,1.8483]
[1754616358462,0.4465,3900.1,3899.9,0.128]
[1754616358758,2.88635,3900.1,3899.9,0.128]
[1754616358967,4.331,3900.0,3899.9,0.128]
[1754616359421,4.333,3900.1,3899.9,0.5597]
[1754616359624,4.333,3900.1,3900.0,0.4317]
[1754616359824,4.333,3900.1,3900.0,2.28]
[1754616360125,0.002,3900.1,3900.0,2.28]
[1754616360322,0.002,3900.1,3900.0,2.5208]
[1754616362372,0.002,3900.1,3899.9,0.128]
[1754616363137,4.327,3900.0,3899.9,0.128]
[1754616363583,4.327,3900.0,3899.9,1.9763]
[1754616364145,0.002,3900.1,3899.9,2.408]
[1754616364457,0.002,3900.1,3899.9,0.128]
[1754616365493,0.002,3900.1,3899.9,1.9763]
[1754616365989,0.002,3900.1,3900.0,2.28]
[1754616366169,0.002,3900.1,3899.9,0.128]
[1754616367388,2.4085,3900.1,3899.9,0.128]
[1754616367740,0.002,3900.1,3899.9,0.128]
[1754616368251,4.323,3900.0,3899.9,0.128]
[1754616368678,6.7295,3900.0,3899.9,0.128]
[1754616368973,7.6590487,3900.0,3899.9,0.128]
[1754616369543,7.6590487,3900.0,3899.1,0.041]
[1754616369544,10.6590487,3900.0,3899.1,0.041]
[1754616369874,3.0,3899.9,3899.8,0.128]
[1754616370173,9.46599143,3899.9,3899.8,0.128]
[1754616370374,6.90182312,3899.9,3899.8,0.128]
[1754616370574,11.22382312,3899.9,3899.8,0.128]
[1754616370780,13.78799143,3899.9,3899.8,0.128]
[1754616371076,11.22382312,3899.9,3899.8,0.128]
[1754616371589,7.322,3899.9,3899.8,0.128]
[1754616372241,9.6449,3899.9,3899.8,0.128]
[1754616372676,4.32,3899.9,3899.8,0.128]
[1754616372880,7.32,3899.9,3899.8,0.128]
[1754616374081,4.32,3899.9,3899.8,2.0718]
[1754616374575,4.32,3899.9,3899.8,2.5399]
[1754616374776,4.318,3899.9,3899.8,2.0718]
[1754616374965,4.318,3899.9,3899.8,2.5399]
[1754616375753,0.002,3900.1,3899.8,2.0718]
[1754616375942,4.318,3900.0,3899.8,1.9438]
[1754616376140,4.318,3900.0,3899.9,1.9438]
[1754616376339,4.318,3900.0,3899.9,2.0718]
[1754616376781,4.318,3900.0,3899.9,0.128]
[1754616377347,5.2052,3900.0,3899.9,0.128]
[1754616377676,7.1332,3900.0,3899.9,0.128]
[1754616377846,4.75,3900.0,3899.9,0.128]
[1754616378047,0.002,3900.1,3899.9,0.128]
[1754616378258,4.316,3900.0,3899.9,0.128]
[1754616379291,6.6992,3900.0,3899.9,0.128]
[1754616379451,9.6992,3900.0,3899.9,0.128]
[1754616379655,3.0,3900.0,3899.9,0.128]
[1754616379969,0.002,3900.1,3899.9,2.4119]
[1754616380181,4.314,3900.0,3899.9,0.5961]
[1754616380566,4.314,3900.0,3899.9,0.128]
[1754616380764,4.314,3900.0,3899.9,2.0718]
[1754616381065,4.314,3900.0,3899.9,2.5399]
[1754616382382,0.002,3900.1,3899.9,2.79389]
[1754616382553,0.002,3900.1,3900.0,2.4119]
[1754616382752,0.002,3900.1,3900.0,1.9438]
[1754616382954,0.002,3900.1,3899.9,0.128]
[1754616383402,4.311,3900.0,3899.9,0.128]
[1754616383900,4.311,3900.0,3899.9,2.0718]
[1754616384071,4.311,3900.0,3899.9,0.128]
[1754616385786,4.311,3900.0,3899.9,2.0718]
[1754616386293,4.311,3900.0,3899.9,0.128]
[1754616386586,6.6942,3900.0,3899.9,0.128]
[1754616386795,10.1255,3900.0,3899.9,0.128]
[1754616386992,12.68960256,3900.0,3899.9,0.128]
[1754616387190,5.56423395,3899.9,3899.8,0.128]
[1754616387372,6.90877728,3899.9,3899.8,0.128]
[1754616387566,9.47294559,3899.9,3899.8,0.128]
[1754616387962,4.52557728,3899.9,3899.8,0.128]
[1754616388158,4.308,3899.9,3899.8,0.128]
[1754616388393,7.307,3899.9,3899.8,0.128]
[1754616388583,7.307,3899.9,3899.8,2.5399]
[1754616388754,0.002,3900.1,3899.8,2.5399]
[1754616388961,4.307,3900.0,3899.9,2.4119]
[1754616389192,4.307,3900.0,3899.8,0.128]
[1754616389490,4.307,3900.0,3899.5,0.001]
[1754616389693,4.307,3900.0,3899.9,0.128]
[1754616389867,0.002,3900.1,3899.9,2.5399]
[1754616390070,0.002,3900.1,3900.0,0.4681]
[1754616390261,0.002,3900.1,3900.0,2.4119]
[1754616390462,0.002,3900.1,3900.0,5.12964358]
[1754616390760,0.002,3900.1,3900.0,5.10400256]
[1754616391299,0.002,3900.1,3900.0,2.5399]
[1754616391591,0.002,3900.1,3900.0,5.10400256]
[1754616391962,0.002,3900.1,3900.0,0.128]
[1754616392865,0.002,3900.1,3900.0,2.74708]
[1754616394010,0.002,3900.1,3900.0,2.0718]
[1754616394921,0.002,3900.1,3900.0,0.128]
[1754616395414,0.002,3900.1,3900.0,4.398]
[1754616395628,0.002,3900.1,3900.0,0.128]
[1754616395788,0.4572,3900.1,3900.0,0.128]
[1754616396630,2.3852,3900.1,3900.0,0.128]
[1754616396783,0.002,3900.1,3900.0,0.128]
[1754616397877,2.3852,3900.1,3900.0,0.128]
[1754616398107,0.002,3900.1,3900.0,0.128]
[1754616398308,0.002,3900.1,3899.5,0.001]
[1754616398309,2.56416972,3899.9,3899.5,0.001]
[1754616398500,0.92483697,3899.8,3899.5,0.001]
[1754616398816,5.87228878,3899.8,3899.5,0.001]
[1754616399121,2.3832,3899.7,3899.5,0.001]
[1754616399420,10.41336557,3899.6,3899.5,1e-08]
[1754616399588,17.34016166,3899.6,3899.5,1e-08]
[1754616399914,19.26716166,3899.6,3899.5,1e-08]
[1754616400115,21.45030574,3899.6,3899.5,1e-08]
[1754616400409,17.15230574,3899.6,3899.5,1e-08]
[1754616400731,21.45030574,3899.6,3899.5,1e-08]
[1754616401443,20.71070965,3899.6,3899.5,1e-08]
[1754616401642,11.33714408,3899.6,3899.5,1e-08]
[1754616401943,13.451,3899.6,3899.5,0.12800001]
[1754616402442,15.8342,3899.6,3899.5,0.12800001]
[1754616402744,9.154,3899.6,3899.5,0.12800001]
[1754616402922,4.296,3899.9,3899.5,2.53990001]
[1754616403123,4.296,3899.9,3899.6,2.66589]
[1754616403315,4.296,3899.9,3899.8,0.128]
[1754616404235,0.002,3900.1,3899.8,2.0874]
[1754616404403,4.295,3900.0,3899.9,2.42254168]
[1754616404600,4.295,3900.0,3899.9,2.63915417]
[1754616404804,4.295,3900.0,3899.9,1.9594]
[1754616405025,4.295,3900.0,3899.9,2.0874]
[1754616405228,4.295,3900.0,3899.9,2.5249]
[1754616405605,0.002,3900.1,3899.9,2.5249]
[1754616405803,0.002,3900.1,3900.0,2.42254102]
[1754616406008,0.002,3900.1,3900.0,2.6519541]
[1754616408741,0.002,3900.1,3900.0,0.2550541]
[1754616408943,0.002,3900.1,3899.9,0.128]
[1754616409651,0.002,3900.1,3900.0,2.3969]
[1754616409943,0.002,3900.1,3900.0,1.9594]
[1754616410625,0.002,3900.1,3900.0,2.3969]
[1754616410822,0.002,3900.1,3900.0,2.64939]
[1754616411022,0.002,3900.1,3900.0,2.77739]
[1754616411915,0.002,3900.1,3900.0,0.38049]
[1754616412142,0.002,3900.1,3900.0,0.128]
[1754616414848,4.81383681,3900.1,3900.0,0.128]
[1754616415145,2.56412916,3900.0,3899.9,0.128]
[1754616415320,4.81192916,3900.0,3899.9,0.128]
[1754616415516,5.54972087,3900.0,3899.9,0.128]
[1754616415853,1.17139171,3900.0,3899.9,0.128]
[1754616416029,4.285,3900.0,3899.9,0.128]
[1754616416549,4.285,3900.0,3899.5,1e-08]
[1754616416550,3.0,3899.9,3899.5,1e-08]
[1754616416851,5.2478,3899.9,3899.6,0.128]
[1754616417150,3.81269026,3899.8,3899.5,1e-08]
[1754616417321,4.285,3899.7,3899.6,0.128]
[1754616417516,4.7186,3899.7,3899.6,0.128]
[1754616417716,6.5328,3899.7,3899.6,0.128]
[1754616418049,6.5328,3899.7,3899.5,1e-08]
[1754616418050,10.46329741,3899.7,3899.5,1e-08]
[1754616418254,4.81216557,3899.6,3899.5,1e-08]
[1754616418454,2.2478,3899.6,3899.5,1e-08]
[1754616419050,4.81216557,3899.6,3899.5,1e-08]
[1754616419346,4.285,3899.7,3899.5,1e-08]
[1754616419551,4.284,3899.6,3899.5,1e-08]
[1754616419723,0.128,3899.9,3899.5,1e-08]
[1754616420047,4.283,3899.6,3899.5,0.12800001]
[1754616420348,4.283,3899.6,3899.5,1e-08]
[1754616420546,0.002,3900.1,3899.6,1.9594]
[1754616420735,4.282,3900.0,3899.5,0.12800001]
[1754616421049,4.282,3900.0,3899.5,1e-08]
[1754616421353,0.002,3900.1,3899.9,0.128]
[1754616421558,4.282,3900.0,3899.9,2.0874]
[1754616421852,0.002,3900.1,3900.0,1.9594]
[1754616422151,4.283,3900.1,3900.0,2.3969]
[1754616423953,0.002,3900.1,3900.0,2.64939]
[1754616426055,0.002,3900.1,3900.0,5.34149256]
[1754616426220,0.002,3900.1,3900.0,2.77739]
[1754616426419,0.002,3900.1,3900.0,8.21349256]
[1754616426650,0.002,3900.8,3900.7,2.56364242]
[1754616426836,0.002,3901.2,3901.1,2.56337955]
[1754616427023,0.04,3901.9,3901.7,2.56298536]
[1754616427254,0.04,3901.9,3901.7,14.08045923]
[1754616427560,0.04,3901.9,3901.7,19.45172938]
[1754616427739,0.04,3901.9,3901.7,20.00172938]
[1754616428356,0.04,3901.9,3901.7,5.5249]
[1754616428569,0.04,3901.9,3901.7,2.0874]
[1754616429159,0.04,3901.9,3901.7,0.128]
[1754616429453,0.4356,3901.8,3901.7,0.128]
[1754616429652,2.2498,3901.8,3901.7,0.128]
[1754616429860,9.571973,3901.8,3901.7,0.128]
[1754616430039,9.08671967,3901.8,3901.7,0.128]
[1754616430426,12.63671967,3901.8,3901.7,0.128]
[1754616430628,2.56298825,3901.7,3901.5,0.128]
[1754616430833,3.83072988,3901.6,3901.5,0.128]
[1754616431035,2.56340275,3901.1,3900.7,2.17305055]
[1754616431231,9.08430624,3901.0,3900.7,2.17305055]
[1754616431540,2.5635767,3900.8,3900.7,2.17305055]
[1754616431729,2.56417954,3899.9,3899.5,1e-08]
[1754616431929,2.56435711,3899.7,3899.5,1e-08]
[1754616432158,4.272,3899.6,3899.5,1e-08]
[1754616432663,4.272,3899.6,3899.5,0.128]
[1754616432866,9.98256325,3899.6,3899.5,0.128]
[1754616433878,2.56476501,3899.0,3898.7,0.001]
[1754616434035,2.56469441,3899.1,3899.0,0.128]
[1754616434346,2.56482597,3898.9,3898.8,0.128]
[1754616434533,5.3284,3899.0,3898.8,0.128]
[1754616434732,4.895,3899.0,3898.8,0.128]
[1754616434964,3.0,3899.0,3898.8,0.128]
[1754616436077,4.895,3899.0,3898.8,0.128]
[1754616436236,3.0,3899.0,3898.8,0.128]
[1754616436746,4.269,3898.9,3898.8,0.128]
[1754616437139,2.3284,3899.9,3898.8,0.128]
[1754616437336,4.269,3899.8,3898.8,0.128]
[1754616437541,3.0,3899.7,3898.8,0.128]
[1754616438062,3.0,3899.7,3898.7,0.001]
[1754616438277,3.0,3899.7,3899.6,0.128]
[1754616438478,0.128,3900.3,3899.6,0.128]
[1754616438479,6.19208165,3900.7,3899.6,0.128]
[1754616438667,3.0,3900.5,3899.6,0.128]
[1754616438871,3.0,3900.5,3900.1,0.128]
[1754616439066,0.55,3900.5,3900.1,0.128]
[1754616439388,5.56397107,3900.2,3900.1,0.128]
[1754616439587,3.0,3900.2,3900.1,0.128]
[1754616439888,4.89220817,3900.6,3899.6,1.9834]
[1754616440183,4.268,3900.5,3900.1,0.128]
[1754616440388,3.0,3900.4,3898.7,1.9844]
[1754616440593,2.56404077,3900.1,3898.7,1.9844]
[1754616440757,4.267,3900.0,3898.7,1.9844]
[1754616441157,4.267,3900.0,3899.9,0.128]
[1754616441359,6.83110256,3900.0,3899.9,0.128]
[1754616441569,9.5954,3900.0,3899.9,0.128]
[1754616441770,12.15950256,3900.0,3899.9,0.128]
[1754616442005,5.56420226,3899.9,3898.7,1.9844]
[1754616442291,5.56420226,3899.9,3899.8,0.128]
[1754616442489,3.0,3899.9,3899.8,0.128]
[1754616442690,4.266,3899.9,3899.8,0.128]
[1754616443658,4.265,3899.9,3899.8,0.128]
[1754616445595,4.6915,3899.9,3899.8,0.128]
[1754616445797,7.0199,3899.9,3899.8,0.128]
[1754616446091,10.0199,3899.9,3899.8,0.128]
[1754616446792,12.58406831,3899.9,3899.8,0.128]
[1754616447094,4.6885,3899.9,3899.6,0.128]
[1754616447393,5.3284,3900.3,3899.8,0.128]
[1754616447596,7.262,3900.2,3899.8,0.128]
[1754616447796,3.0,3900.0,3899.4,1.9834]
[1754616447973,4.262,3899.9,3899.0,2.4175]
[1754616448169,4.262,3899.9,3899.1,4.27]
[1754616448494,0.4334,3900.6,3899.8,0.128]
[1754616448684,3.0,3900.4,3899.8,0.128]
[1754616448887,3.0,3900.4,3899.7,1.9834]
[1754616449063,3.0,3900.4,3900.3,0.128]
[1754616449260,7.8922396,3900.4,3900.3,0.128]
[1754616449513,2.56390777,3900.3,3899.4,4.27]
[1754616449698,2.5640269,3900.2,3899.4,4.27]
[1754616449896,4.26,3900.1,3899.4,4.27]
[1754616450093,4.83453212,3900.4,3900.1,0.128]
[1754616450282,4.26,3900.3,3900.0,0.128]
[1754616450487,4.26,3900.3,3899.7,0.4341]
[1754616450685,4.26,3900.3,3899.4,4.27]
[1754616450686,2.56410293,3900.0,3899.4,4.27]
[1754616450997,4.26,3899.9,3899.4,4.27]
[1754616451368,4.26,3899.9,3899.8,0.128]
[1754616452197,4.94240855,3899.9,3899.8,0.128]
[1754616452696,4.26,3899.9,3899.8,0.128]
[1754616453379,4.26,3899.9,3899.8,2.1114]
[1754616454368,4.258,3899.9,3899.8,2.5455]
[1754616454568,4.257,3899.9,3899.8,2.5455]
[1754616454769,4.257,3899.9,3899.8,2.80005]
[1754616454970,4.257,3899.9,3899.8,2.1114]
[1754616455303,4.257,3899.9,3899.8,2.5455]
[1754616455903,4.259,3899.9,3899.8,2.1114]
[1754616456203,4.259,3899.9,3899.8,0.128]
[1754616457487,6.154,3899.9,3899.8,0.128]
[1754616457693,6.5874,3899.9,3899.8,0.128]
[1754616458400,4.6924,3899.9,3899.8,0.128]
[1754616458588,4.259,3899.9,3899.8,0.128]
[1754616459003,9.76696831,3899.9,3899.8,0.128]
[1754616459299,7.86796831,3899.9,3899.8,0.128]
[1754616459877,7.43456831,3899.9,3899.8,0.128]
[1754616460822,4.254,3899.9,3899.8,2.1114]
[1754616461024,4.254,3899.9,3899.8,2.5455]
[1754616461190,0.002,3899.9,3899.8,2.5455]
[1754616461594,4.254,3899.9,3899.8,2.5455]
[1754616461791,4.254,3899.9,3899.8,0.128]
[1754616462527,4.254,3899.9,3899.8,2.5455]
[1754616462741,4.254,3899.9,3899.8,2.80005]
[1754616462898,0.002,3899.9,3899.8,2.80005]
[1754616464128,0.002,3899.9,3899.8,2.5455]
[1754616465496,0.002,3899.9,3899.8,0.128]
[1754616466120,0.4645,3899.9,3899.8,0.128]
[1754616466325,4.25,3899.9,3899.8,0.128]
[1754616467103,4.249,3899.9,3899.8,2.056]
[1754616467492,0.002,3899.9,3899.8,2.5065]
[1754616467932,0.002,3899.9,3899.8,2.75715]
[1754616468133,0.002,3899.9,3899.8,7.02715]
[1754616469197,0.002,3899.9,3899.8,9.59138406]
[1754616469397,0.002,3899.9,3899.8,7.02715]
[1754616469634,0.002,3899.9,3899.8,6.57665]
[1754616469931,0.002,3899.9,3899.8,7.02715]
[1754616470523,0.002,3899.9,3899.8,6.326]
[1754616470722,0.002,3899.9,3899.8,6.7765]
[1754616471526,0.002,3899.9,3899.8,4.398]
[1754616472055,0.002,3899.9,3899.8,6.7765]
[1754616472330,0.002,3899.9,3899.8,2.056]
[1754616472824,0.002,3899.9,3899.8,2.5065]
[1754616473032,0.002,3899.9,3899.8,2.7121]
[1754616474406,0.002,3899.9,3899.8,5.27633406]
[1754616474810,0.002,3899.9,3899.8,2.7121]
[1754616476945,0.002,3899.9,3899.8,0.128]
[1754616477439,0.002,3899.9,3899.8,2.056]
[1754616477628,0.002,3899.9,3899.8,0.128]
[1754616479046,0.002,3899.9,3899.8,2.056]
[1754616479229,0.002,3899.9,3899.8,0.128]
[1754616479828,0.002,3899.9,3899.8,2.056]
[1754616480030,0.002,3899.9,3899.8,2.5065]
[1754616480545,0.002,3899.9,3899.8,5.07073406]